lending/lending_fUSD_20250131
["ID","MTS","AMOUNT","RATE_DAILY","PERIOD"]
[351029755,1738301443534,-2298.22,0.00019178,2]
[351029756,1738301443543,-1045.84,0.00019178,2]
[351029757,1738301443553,-500.0,0.00019178,2]
[351029758,1738301443564,-636.37,0.00019178,2]
[351029759,1738301443574,-917.12,0.00019178,2]
[351029760,1738301443584,-500.0,0.00019178,2]
[351029761,1738301443593,-500.0,0.00019178,2]
[351029762,1738301443603,-500.0,0.00019178,2]
[351029763,1738301443612,-520.65,0.00019178,2]
[351029764,1738301443621,-3638.21,0.00019178,2]
[351029765,1738301443631,-174.47728217,0.00019178,2]
[351029766,1738301443640,-150.52,0.00019178,2]
[351029767,1738301443650,-4473.99142106,0.00019183,3]
[351029768,1738301443660,-154282.12708326,0.00019183,3]
[351029769,1738301443670,-4473.99142106,0.00019185,3]
[351029770,1738301443680,-4473.99142106,0.00019187,3]
[351029771,1738301443690,-200.0,0.00019188,3]
[351029772,1738301443700,-200.0,0.0001919,3]
[351029773,1738301443710,-2989.95490033,0.000192,3]
[351029774,1738301443720,-203.30716714,0.00019206,2]
[351029775,1738301443730,-500.0,0.00019214,3]
[351029776,1738301443742,-168.66754734,0.00019215,2]
[351029777,1738301443752,-4401.79697588,0.00019247,2]
[351029778,1738301443762,-500.0,0.00019264,2]
[351029779,1738301443772,-158.400441,0.0001927,2]
[351029780,1738301443782,-159.98619382,0.00019297,2]
[351029781,1738301443791,-90451.97047366,0.000193,2]
[351029782,1738301443800,-265.97597609,0.00019305,2]
[351029783,1738301443810,-357.85616503,0.00019313,2]
[351029784,1738301443819,-300.0,0.00019314,2]
[351029785,1738301443828,-500.0,0.00019314,3]
[351029786,1738301443839,-584.81,0.00019314,3]
[351029787,1738301443848,-500.0,0.00019314,3]
[351029788,1738301443858,-500.0,0.00019314,3]
[351029789,1738301443868,-500.0,0.00019314,3]
[351029790,1738301443878,-500.0,0.00019314,3]
[351029791,1738301443887,-759.37,0.00019314,3]
[351029792,1738301443897,-500.0,0.00019314,3]
[351029793,1738301443907,-500.0,0.00019314,3]
[351029794,1738301443917,-500.0,0.00019314,3]
[351029795,1738301443927,-500.0,0.00019314,3]
[351029796,1738301443937,-500.0,0.00019314,3]
[351029797,1738301443948,-500.0,0.00019314,3]
[351029798,1738301443958,-500.0,0.00019314,3]
[351029799,1738301443967,-762.88,0.00019314,3]
[351029800,1738301443977,-1157.23,0.00019314,3]
[351029801,1738301443988,-500.0,0.00019314,3]
[351029802,1738301443998,-500.0,0.00019314,3]
[351029803,1738301444007,-500.0,0.00019314,3]
[351029804,1738301444016,-500.0,0.00019314,3]
[351029805,1738301444025,-500.0,0.00019314,3]
[351029806,1738301444035,-500.0,0.00019314,3]
[351029807,1738301444045,-500.0,0.00019314,3]
[351029808,1738301444055,-500.0,0.00019314,3]
[351029809,1738301444064,-640.51541924,0.00019314,3]
[351029810,1738301444074,-500.0,0.00019314,3]
[351029811,1738301444084,-520.59570586,0.00019314,3]
[351029812,1738301444094,-500.0,0.00019314,3]
[351029813,1738301444102,-500.0,0.00019314,3]
[351029814,1738301444115,-500.0,0.00019314,3]
[351029815,1738301444126,-500.0,0.00019314,3]
[351029816,1738301444135,-592.78,0.00019314,3]
[351029817,1738301444144,-500.0,0.00019314,3]
[351029818,1738301444155,-590.24,0.00019314,3]
[351029819,1738301444164,-500.0,0.00019314,3]
[351029820,1738301444174,-500.0,0.00019314,3]
[351029821,1738301444185,-576.29,0.00019314,3]
[351029822,1738301444195,-500.0,0.00019314,3]
[351029823,1738301444205,-500.0,0.00019314,3]
[351029824,1738301444215,-500.0,0.00019314,3]
[351029825,1738301444224,-500.0,0.00019314,3]
[351029826,1738301444234,-703.51,0.00019314,3]
[351029827,1738301444244,-500.0,0.00019314,3]
[351029828,1738301444254,-500.0,0.00019314,3]
[351029829,1738301444264,-500.0,0.00019314,3]
[351029830,1738301444274,-768.67,0.00019314,3]
[351029831,1738301444284,-500.0,0.00019314,3]
[351029832,1738301444294,-500.0,0.00019314,3]
[351029833,1738301444304,-500.0,0.00019314,3]
[351029834,1738301444314,-628.18,0.00019314,3]
[351029835,1738301444323,-506.66,0.00019314,3]
[351029836,1738301444333,-500.0,0.00019314,3]
[351029837,1738301444343,-844.99,0.00019314,3]
[351029838,1738301444353,-500.0,0.00019314,3]
[351029839,1738301444363,-500.0,0.00019314,3]
[351029840,1738301444373,-500.0,0.00019314,3]
[351029841,1738301444382,-500.0,0.00019314,3]
[351029842,1738301444392,-500.0,0.00019314,3]
[351029843,1738301444402,-758.07,0.00019314,3]
[351029844,1738301444411,-900.0,0.00019315,2]
[351029845,1738301444422,-900.0,0.00019315,2]
[351029846,1738301444431,-900.0,0.00019315,2]
[351029847,1738301444441,-900.0,0.00019315,2]
[351029848,1738301444451,-900.0,0.00019315,2]
[351029849,1738301444460,-900.0,0.00019315,2]
[351029850,1738301444470,-900.0,0.00019315,2]
[351029851,1738301444480,-900.0,0.00019315,2]
[351029852,1738301444489,-900.0,0.00019315,2]
[351029853,1738301444499,-900.0,0.00019315,2]
[351029854,1738301444509,-1031.48,0.00019315,3]
[351029855,1738301444519,-405.70803933,0.00019315,3]
[351029856,1738301444531,-580.93,0.00019315,3]
[351029857,1738301444541,-500.0,0.00019315,3]
[351029858,1738301444551,-500.0,0.00019315,3]
[351029859,1738301444561,-500.0,0.00019315,3]
[351029860,1738301444571,-500.0,0.00019315,3]
[351029861,1738301444811,-500.0,0.00019315,3]
[351029862,1738301444821,-500.0,0.00019315,3]
[351029863,1738301444832,-500.0,0.00019315,3]
[351029864,1738301444843,-668.89,0.00019315,3]
[351029865,1738301444853,-500.0,0.00019315,3]
[351029866,1738301444862,-500.0,0.00019315,3]
[351029867,1738301444872,-500.0,0.00019315,3]
[351029868,1738301444881,-556.35,0.00019315,3]
[351029869,1738301444891,-593.66262669,0.00019315,3]
[351029870,1738301444902,-500.0,0.00019315,3]
[351029871,1738301444911,-500.0,0.00019315,3]
[351029872,1738301444921,-500.0,0.00019315,3]
[351029873,1738301444932,-500.0,0.00019315,3]
[351029874,1738301444942,-500.0,0.00019315,3]
[351029875,1738301444952,-500.0,0.00019315,3]
[351029876,1738301444962,-577.39,0.00019315,3]
[351029877,1738301444972,-500.0,0.00019315,3]
[351029878,1738301444981,-390.87450962,0.00019315,3]
[351029879,1738301444991,-500.0,0.00019315,3]
[351029880,1738301445001,-533.63,0.00019315,3]
[351029881,1738301445011,-500.0,0.00019315,3]
[351029882,1738301445022,-500.0,0.00019315,3]
[351029883,1738301445032,-500.0,0.00019315,3]
[351029884,1738301445042,-500.0,0.00019315,3]
[351029885,1738301445051,-1113.16,0.00019315,3]
[351029886,1738301445061,-500.0,0.00019315,3]
[351029887,1738301445071,-500.0,0.00019315,3]
[351029888,1738301445081,-500.0,0.00019315,3]
[351029889,1738301445092,-294.91533,0.00019315,2]
[351029890,1738301445102,-3468.939684,0.00019315,3]
[351029891,1738301445117,-500.0,0.00019315,3]
[351029892,1738301445127,-152.930379,0.00019315,3]
[351029893,1738301445137,-500.0,0.00019315,3]
[351029894,1738301445146,-500.0,0.00019315,3]
[351029895,1738301445156,-500.0,0.00019315,3]
[351029896,1738301445166,-945.71,0.00019315,3]
[351029897,1738301445175,-500.0,0.00019315,3]
[351029898,1738301445186,-2451.831411,0.00019315,3]
[351029899,1738301445196,-474.49822282,0.00019315,3]
[351029900,1738301445206,-500.0,0.00019315,3]
[351029901,1738301445216,-714.12,0.00019315,3]
[351029902,1738301445225,-500.0,0.00019315,3]
[351029903,1738301445235,-500.0,0.00019315,3]
[351029904,1738301445245,-600.11,0.00019315,3]
[351029905,1738301445255,-500.0,0.00019315,3]
[351029906,1738301445265,-500.0,0.00019315,3]
[351029907,1738301445274,-512.19,0.00019315,3]
[351029908,1738301445284,-500.0,0.00019315,3]
[351029909,1738301445294,-500.0,0.00019315,3]
[351029910,1738301445304,-500.0,0.00019315,3]
[351029911,1738301445314,-500.0,0.00019315,3]
[351029912,1738301445323,-500.0,0.00019315,3]
[351029913,1738301445333,-968.05,0.00019315,3]
[351029914,1738301445343,-548.27,0.00019315,3]
[351029915,1738301445353,-1811.08,0.00019315,3]
[351029916,1738301445363,-592.21,0.00019315,3]
[351029917,1738301445372,-500.0,0.00019315,3]
[351029918,1738301445382,-500.0,0.00019315,3]
[351029919,1738301445392,-534.18,0.00019315,3]
[351029920,1738301445402,-1432.04,0.00019315,3]
[351029921,1738301445411,-500.0,0.00019315,3]
[351029922,1738301445421,-618.73,0.00019315,3]
[351029923,1738301445431,-500.0,0.00019315,3]
[351029924,1738301445440,-1180.38,0.00019315,3]
[351029925,1738301445450,-1557.64,0.00019315,3]
[351029926,1738301445460,-654.78,0.00019315,3]
[351029927,1738301445470,-500.0,0.00019315,3]
[351029929,1738301445480,-500.72,0.00019315,3]
[351029931,1738301445490,-500.0,0.00019315,3]
[351029933,1738301445500,-500.0,0.00019315,3]
[351029934,1738301445510,-688.33,0.00019315,3]
[351029936,1738301445519,-739.44,0.00019315,3]
[351029938,1738301445529,-1000.98,0.00019315,3]
[351029939,1738301445539,-782.64,0.00019315,3]
[351029941,1738301445550,-663.82,0.00019315,3]
[351029943,1738301445560,-1415.57,0.00019315,3]
[351029944,1738301445569,-500.0,0.00019315,3]
[351029945,1738301445579,-500.0,0.00019315,3]
[351029946,1738301445589,-578.53,0.00019315,3]
[351029947,1738301445598,-770.59,0.00019315,3]
[351029949,1738301445608,-944.57,0.00019315,3]
[351029951,1738301445618,-724.12,0.00019315,3]
[351029953,1738301445628,-500.0,0.00019315,3]
[351029955,1738301445637,-741.64,0.00019315,3]
[351029957,1738301445647,-1675.52,0.00019315,3]
[351029959,1738301445658,-752.95,0.00019315,3]
[351029961,1738301445668,-670.74,0.00019315,3]
[351029963,1738301445678,-500.0,0.00019315,3]
[351029965,1738301445688,-1929.23,0.00019315,3]
[351029967,1738301445698,-697.3,0.00019315,3]
[351029969,1738301445707,-698.89,0.00019315,3]
[351029971,1738301445719,-716.53,0.00019315,3]
[351029974,1738301445729,-500.0,0.00019315,3]
[351029975,1738301445739,-594.18,0.00019315,3]
[351029977,1738301445748,-1177.73,0.00019315,3]
[351029979,1738301445758,-606.36,0.00019315,3]
[351029982,1738301445769,-692.8,0.00019315,3]
[351029984,1738301445778,-500.0,0.00019315,3]
[351029985,1738301445788,-1033.79,0.00019315,3]
[351029987,1738301445797,-500.0,0.00019315,3]
[351029989,1738301445807,-500.0,0.00019315,3]
[351029991,1738301445817,-672.69,0.00019315,3]
[351029993,1738301445826,-592.23,0.00019315,3]
[351029995,1738301445836,-339.45701812,0.00019315,3]
[351029998,1738301445846,-500.0,0.00019315,3]
[351030000,1738301445857,-588.15,0.00019315,3]
[351030002,1738301445866,-668.74,0.00019315,3]
[351030004,1738301445876,-1202.42,0.00019315,3]
[351030006,1738301445886,-569.49,0.00019315,3]
[351030008,1738301445895,-500.0,0.00019315,3]
[351030010,1738301445905,-875.82,0.00019315,3]
[351030012,1738301445915,-540.19,0.00019315,3]
[351030014,1738301445924,-500.0,0.00019315,3]
[351030016,1738301445934,-1057.5,0.00019315,3]
[351030018,1738301445943,-1247.9,0.00019315,3]
[351030020,1738301445953,-187.81665664,0.00019315,3]
[351030022,1738301445963,-542.18,0.00019315,3]
[351030024,1738301445973,-500.0,0.00019315,3]
[351030026,1738301445983,-500.0,0.00019315,3]
[351030027,1738301445993,-1115.39,0.00019315,3]
[351030028,1738301446002,-543.4,0.00019315,3]
[351030029,1738301446011,-500.0,0.00019315,3]
[351030030,1738301446021,-500.0,0.00019315,3]
[351030031,1738301446030,-861.4,0.00019315,3]
[351030032,1738301446042,-500.0,0.00019315,3]
[351030033,1738301446052,-500.0,0.00019315,3]
[351030034,1738301446061,-500.0,0.00019315,3]
[351030035,1738301446071,-704.27,0.00019315,3]
[351030036,1738301446082,-749.91,0.00019315,3]
[351030037,1738301446093,-500.0,0.00019315,3]
[351030038,1738301446104,-1414.14,0.00019315,3]
[351030039,1738301446116,-849.54,0.00019315,3]
[351030040,1738301446126,-1501.61,0.00019315,3]
[351030041,1738301446135,-500.0,0.00019315,3]
[351030042,1738301446146,-159.57352962,0.00019315,3]
[351030043,1738301446156,-641.99,0.00019315,3]
[351030044,1738301446166,-500.0,0.00019315,3]
[351030045,1738301446176,-1058.81,0.00019315,3]
[351030046,1738301446186,-982.38,0.00019315,3]
[351030047,1738301446197,-500.0,0.00019315,3]
[351030048,1738301446208,-682.82,0.00019315,3]
[351030049,1738301446218,-500.0,0.00019315,3]
[351030050,1738301446227,-717.1,0.00019315,3]
[351030051,1738301446238,-610.98,0.00019315,3]
[351030052,1738301446248,-1510.03,0.00019315,3]
[351030053,1738301446257,-500.0,0.00019315,3]
[351030054,1738301446266,-1186.41,0.00019315,3]
[351030055,1738301446276,-737.71,0.00019315,3]
[351030056,1738301446285,-500.0,0.00019315,3]
[351030057,1738301446294,-1703.2,0.00019315,3]
[351030058,1738301446304,-662.02,0.00019315,3]
[351030059,1738301446314,-500.0,0.00019315,3]
[351030060,1738301446323,-715.51,0.00019315,3]
[351030061,1738301446333,-1245.61,0.00019315,3]
[351030062,1738301446342,-500.0,0.00019315,3]
[351030063,1738301446352,-500.0,0.00019315,3]
[351030064,1738301446362,-673.97,0.00019315,3]
[351030065,1738301446371,-600.22,0.00019315,3]
[351030066,1738301446380,-500.0,0.00019315,3]
[351030067,1738301446390,-500.0,0.00019315,3]
[351030068,1738301446400,-736.85,0.00019315,3]
[351030069,1738301446409,-732.79,0.00019315,3]
[351030070,1738301446418,-658.3,0.00019315,3]
[351030071,1738301446427,-500.0,0.00019315,3]
[351030072,1738301446438,-500.0,0.00019315,3]
[351030073,1738301446448,-500.0,0.00019315,3]
[351030074,1738301446457,-761.23,0.00019315,3]
[351030075,1738301446467,-1167.39,0.00019315,3]
[351030076,1738301446477,-500.0,0.00019315,3]
[351030077,1738301446489,-500.0,0.00019315,3]
[351030078,1738301446499,-912.55,0.00019315,3]
[351030079,1738301446509,-500.0,0.00019315,3]
[351030080,1738301446519,-500.0,0.00019315,3]
[351030081,1738301446530,-893.93,0.00019315,3]
[351030082,1738301446540,-500.0,0.00019315,3]
[351030083,1738301446550,-512.74608422,0.00019315,3]
[351030084,1738301446560,-500.0,0.00019315,3]
[351030085,1738301446570,-500.0,0.00019315,3]
[351030086,1738301446580,-947.81,0.00019315,3]
[351030087,1738301446592,-500.0,0.00019315,3]
[351030088,1738301446601,-600.02,0.00019315,3]
[351030089,1738301446611,-829.97,0.00019315,3]
[351030090,1738301446621,-500.0,0.00019315,3]
[351030091,1738301446632,-500.0,0.00019315,3]
[351030092,1738301446642,-636.5,0.00019315,3]
[351030093,1738301446651,-151.0,0.00019315,2]
[351030094,1738301446662,-1406.67,0.00019315,3]
[351030095,1738301446672,-849.42,0.00019315,3]
[351030096,1738301446681,-500.0,0.00019315,3]
[351030097,1738301446690,-1380.74,0.00019315,3]
[351030098,1738301446700,-728.25,0.00019315,3]
[351030099,1738301446710,-500.0,0.00019315,3]
[351030100,1738301446720,-1963.59,0.00019315,3]
[351030101,1738301446730,-500.0,0.00019315,3]
[351030102,1738301446739,-500.0,0.00019315,3]
[351030103,1738301446749,-847.46,0.00019315,3]
[351030104,1738301446758,-1196.13,0.00019315,3]
[351030105,1738301446768,-1792.21,0.00019315,3]
[351030106,1738301446778,-923.59,0.00019315,3]
[351030107,1738301446787,-1114.71,0.00019315,3]
[351030108,1738301446797,-1758.05,0.00019315,3]
[351030109,1738301446806,-500.0,0.00019315,3]
[351030110,1738301446816,-739.29,0.00019315,3]
[351030111,1738301446826,-710.98,0.00019315,3]
[351030112,1738301446836,-500.0,0.00019315,3]
[351030113,1738301446846,-831.41,0.00019315,3]
[351030114,1738301446855,-1679.77,0.00019315,3]
[351030115,1738301446865,-511.06832147,0.00019315,3]
[351030116,1738301446874,-500.0,0.00019315,3]
[351030117,1738301446884,-994.45,0.00019315,3]
[351030118,1738301446894,-798.64,0.00019315,3]
[351030119,1738301446913,-1481.51,0.00019315,3]
[351030120,1738301446929,-500.0,0.00019315,3]
[351030121,1738301446942,-1369.48,0.00019315,3]
[351030122,1738301446954,-500.0,0.00019315,3]
[351030123,1738301446969,-984.58,0.00019315,3]
[351030124,1738301446983,-505.01,0.00019315,3]
[351030125,1738301446997,-673.1,0.00019315,3]
[351030126,1738301447012,-1009.72,0.00019315,3]
[351030127,1738301447027,-500.0,0.00019315,3]
[351030128,1738301447041,-500.0,0.00019315,3]
[351030129,1738301447053,-500.0,0.00019315,3]
[351030130,1738301447065,-519.53,0.00019315,3]
[351030131,1738301447080,-151.0,0.00019315,2]
[351030132,1738301447094,-500.0,0.00019315,3]
[351030133,1738301447109,-500.0,0.00019315,3]
[351030134,1738301447127,-505.17,0.00019315,3]
[351030135,1738301447142,-1080.35,0.00019315,3]
[351030136,1738301447158,-645.56,0.00019315,3]
[351030137,1738301447170,-1332.28,0.00019315,3]
[351030138,1738301447183,-1523.04,0.00019315,3]
[351030139,1738301447200,-500.0,0.00019315,3]
[351030140,1738301447214,-500.0,0.00019315,3]
[351030141,1738301447228,-500.0,0.00019315,3]
[351030142,1738301447242,-579.2,0.00019315,3]
[351030143,1738301447255,-612.38,0.00019315,3]
[351030144,1738301447268,-2182.26,0.00019315,3]
[351030145,1738301447283,-500.0,0.00019315,3]
[351030146,1738301447296,-500.0,0.00019315,3]
[351030147,1738301447308,-1849.77,0.00019315,3]
[351030148,1738301447320,-787.08,0.00019315,3]
[351030149,1738301447332,-500.0,0.00019315,3]
[351030150,1738301447345,-500.0,0.00019315,3]
[351030151,1738301447361,-500.0,0.00019315,3]
[351030152,1738301447376,-1306.69,0.00019315,3]
[351030153,1738301447388,-1185.88,0.00019315,3]
[351030154,1738301447399,-500.0,0.00019315,3]
[351030155,1738301447412,-500.0,0.00019315,3]
[351030156,1738301447426,-500.0,0.00019315,3]
[351030157,1738301447441,-739.62,0.00019315,3]
[351030158,1738301447453,-1080.87,0.00019315,3]
[351030159,1738301447465,-632.18,0.00019315,3]
[351030160,1738301447479,-500.0,0.00019315,3]
[351030161,1738301447492,-1343.21,0.00019315,3]
[351030162,1738301447505,-1151.99,0.00019315,3]
[351030163,1738301447519,-500.0,0.00019315,3]
[351030164,1738301447531,-792.23,0.00019315,3]
[351030165,1738301447544,-1331.77,0.00019315,3]
[351030166,1738301447556,-694.87,0.00019315,3]
[351030167,1738301447569,-2213.48,0.00019315,3]
[351030168,1738301447582,-7368.92,0.00019315,3]
[351030169,1738301447595,-500.0,0.00019315,3]
[351030170,1738301447607,-500.0,0.00019315,3]
[351030171,1738301447619,-824.06,0.00019315,3]
[351030172,1738301447632,-2817.74,0.00019315,3]
[351030173,1738301447644,-1125.68,0.00019315,3]
[351030174,1738301447658,-500.0,0.00019315,3]
[351030175,1738301447672,-577.65,0.00019315,3]
[351030176,1738301447684,-2935.97,0.00019315,3]
[351030177,1738301447697,-500.0,0.00019315,3]
[351030178,1738301447710,-1846.87,0.00019315,3]
[351030179,1738301447722,-675.76,0.00019315,3]
[351030180,1738301447734,-2334.88,0.00019315,3]
[351030181,1738301447747,-1091.13,0.00019315,3]
[351030182,1738301447759,-1150.98,0.00019315,2]
[351030183,1738301447773,-1437.25,0.00019315,3]
[351030184,1738301447786,-2277.22,0.00019315,3]
[351030185,1738301447798,-500.0,0.00019315,3]
[351030186,1738301447811,-5475.11,0.00019315,3]
[351030187,1738301447824,-500.0,0.00019315,3]
[351030188,1738301447838,-500.0,0.00019315,3]
[351030189,1738301447855,-500.0,0.00019315,3]
[351030190,1738301447868,-500.0,0.00019315,3]
[351030191,1738301447880,-3332.44,0.00019315,3]
[351030192,1738301447893,-1677.96,0.00019315,3]
[351030193,1738301447907,-500.0,0.00019315,3]
[351030194,1738301447920,-500.0,0.00019315,3]
[351030195,1738301447932,-824.87,0.00019315,3]
[351030196,1738301447945,-823.48,0.00019315,3]
[351030197,1738301447959,-500.0,0.00019315,3]
[351030198,1738301447972,-1897.24,0.00019315,3]
[351030199,1738301447986,-18202.79,0.00019315,3]
[351030200,1738301447998,-500.0,0.00019315,3]
[351030201,1738301448011,-500.0,0.00019315,3]
[351030202,1738301448024,-1516.36,0.00019315,3]
[351030203,1738301448037,-1467.6,0.00019315,3]
[351030204,1738301448051,-500.0,0.00019315,3]
[351030205,1738301448064,-1520.66,0.00019315,3]
[351030206,1738301448077,-1558.27,0.00019315,3]
[351030207,1738301448091,-500.0,0.00019315,3]
[351030208,1738301448104,-3293.33,0.00019315,3]
[351030209,1738301448120,-1169.06,0.00019315,3]
[351030210,1738301448133,-500.0,0.00019315,3]
[351030211,1738301448147,-9062.21,0.00019315,3]
[351030212,1738301448159,-500.0,0.00019315,3]
[351030213,1738301448172,-747.99,0.00019315,3]
[351030214,1738301448185,-1804.44,0.00019315,3]
[351030215,1738301448199,-500.0,0.00019315,3]
[351030216,1738301448213,-500.0,0.00019315,3]
[351030217,1738301448226,-2334.42,0.00019315,3]
[351030218,1738301448239,-2036.52,0.00019315,3]
[351030219,1738301448253,-500.0,0.00019315,3]
[351030220,1738301448265,-589.68,0.00019315,3]
[351030221,1738301448278,-500.0,0.00019315,3]
[351030222,1738301448291,-737.98,0.00019315,3]
[351030223,1738301448303,-500.0,0.00019315,3]
[351030224,1738301448316,-1877.53,0.00019315,3]
[351030225,1738301448328,-412.0,0.00019315,3]
[351030226,1738301448340,-2831.42,0.00019315,3]
[351030227,1738301448353,-2138.68,0.00019315,3]
[351030228,1738301448367,-946.23,0.00019315,3]
[351030229,1738301448380,-1290.34,0.00019315,3]
[351030230,1738301448394,-2672.06,0.00019315,3]
[351030231,1738301448407,-1826.29,0.00019315,3]
[351030232,1738301448420,-2434.41,0.00019315,3]
[351030233,1738301448434,-2762.83,0.00019315,3]
[351030234,1738301448446,-1753.18,0.00019315,3]
[351030235,1738301448459,-866.79,0.00019315,3]
[351030236,1738301448471,-1557.84,0.00019315,3]
[351030237,1738301448484,-846.5,0.00019315,3]
[351030238,1738301448497,-5078.56,0.00019315,3]
[351030239,1738301448510,-2383.5,0.00019315,3]
[351030240,1738301448523,-1139.58,0.00019315,3]
[351030241,1738301448536,-4118.81,0.00019315,3]
[351030242,1738301448549,-2463.41,0.00019315,3]
[351030243,1738301448562,-1861.99,0.00019315,3]
[351030244,1738301448575,-1189.93,0.00019315,3]
[351030245,1738301448589,-1136.34,0.00019315,3]
[351030246,1738301448601,-612.86,0.00019315,3]
[351030247,1738301448615,-3274.89,0.00019315,3]
[351030248,1738301448627,-5379.83,0.00019315,3]
[351030249,1738301448640,-2607.33,0.00019315,3]
[351030250,1738301448652,-1714.12,0.00019315,3]
[351030251,1738301448664,-865.08,0.00019315,3]
[351030252,1738301448676,-500.0,0.00019315,3]
[351030253,1738301448690,-2355.41,0.00019315,3]
[351030254,1738301448705,-604.54476422,0.00019315,3]
[351030255,1738301448718,-500.0,0.00019315,3]
[351030256,1738301448731,-500.0,0.00019315,3]
[351030257,1738301448744,-500.0,0.00019315,3]
[351030258,1738301448757,-7803.52,0.00019315,3]
[351030259,1738301448770,-2477.27,0.00019315,3]
[351030260,1738301448783,-5824.51,0.00019315,3]
[351030261,1738301448796,-11176.24,0.00019315,3]
[351030262,1738301448809,-6615.38,0.00019315,3]
[351030263,1738301448822,-2234.24,0.00019315,3]
[351030264,1738301448836,-500.0,0.00019315,3]
[351030265,1738301448849,-5419.3,0.00019315,3]
[351030266,1738301448862,-527.66141984,0.00019315,3]
[351030267,1738301448875,-1844.22,0.00019315,3]
[351030268,1738301448888,-1614.58,0.00019315,3]
[351030269,1738301448901,-637.65,0.00019315,3]
[351030270,1738301448914,-3986.72,0.00019315,3]
[351030271,1738301448927,-1949.5,0.00019315,3]
[351030272,1738301448940,-944.38,0.00019315,3]
[351030273,1738301448953,-2619.26,0.00019315,3]
[351030274,1738301448967,-3467.6,0.00019315,3]
[351030275,1738301448979,-2527.54,0.00019315,3]
[351030276,1738301448993,-5123.32,0.00019315,3]
[351030277,1738301449005,-1491.99,0.00019315,3]
[351030278,1738301449018,-500.0,0.00019315,3]
[351030279,1738301449031,-1779.19,0.00019315,3]
[351030280,1738301449044,-7848.06,0.00019315,3]
[351030281,1738301449056,-6202.83,0.00019315,3]
[351030282,1738301449069,-500.0,0.00019315,3]
[351030283,1738301449082,-972.35,0.00019315,2]
[351030284,1738301449096,-3926.56,0.00019315,3]
[351030285,1738301449109,-1095.47,0.00019315,3]
[351030286,1738301449125,-9224.17,0.00019315,3]
[351030287,1738301449137,-500.0,0.00019315,3]
[351030288,1738301449150,-1603.33,0.00019315,3]
[351030289,1738301449163,-530.1,0.00019315,3]
[351030290,1738301449176,-2068.69,0.00019315,3]
[351030291,1738301449190,-500.0,0.00019315,3]
[351030292,1738301449203,-3891.85,0.00019315,3]
[351030293,1738301449215,-500.0,0.00019315,3]
[351030294,1738301449227,-1801.02,0.00019315,3]
[351030295,1738301449239,-835.93,0.00019315,3]
[351030296,1738301449251,-598.68,0.00019315,3]
[351030297,1738301449263,-3175.26,0.00019315,3]
[351030298,1738301449276,-1022.97,0.00019315,3]
[351030299,1738301449288,-1912.69,0.00019315,3]
[351030300,1738301449301,-500.0,0.00019315,3]
[351030301,1738301449313,-6703.22,0.00019315,3]